Cogmind - Beta 10.2 @@@ ROGUE MODE // 2021.01.10 @ 00:51:29 Player: Cape Result: Self-destructed Performance ------------- Evolutions (1) 500 Regions Visited (2) 400 Robots Destroyed (37) 185 Value Destroyed (854) 854 Prototype IDs (0) 0 Alien Tech Used (0) 0 Bonus (0) 0 TOTAL SCORE: 1939 Bonus ------- None Cogmind --------- Core Integrity 9/400 Matter 79/300 Energy 100/100 System Corruption 0% Temperature Cool (0) Movement Core (150) Ox2 Location -9/Materials Parts ------- > --- POWER (1) -------- (None) > --- PROPULSION (2) --- (None) > --- UTILITY (3) ------ Medium Storage Unit Targeting Computer > --- WEAPON (3) ------- (None) > --- INVENTORY (8) ---- Improved Aluminum Leg Improved Aluminum Leg Peak State ------------ > --- POWER ------------ Light Ion Engine > --- PROPULSION ------- Aluminum Leg Aluminum Leg > --- UTILITY ---------- Medium Storage Unit Targeting Computer Light Armor Plating > --- WEAPON ----------- Shotgun Light Cannon Grenade Launcher > --- INVENTORY -------- Ion Engine Light Ion Engine High-capacity Storage Unit Assault Rifle Light Assault Rifle Grenade Launcher [Rating: 10] Favorites ----------- Power Light Ion Engine Engine Light Ion Engine Propulsion Aluminum Leg Leg Aluminum Leg Utility Medium Storage Unit Storage Medium Storage Unit Processor Targeting Computer Protection Light Armor Plating Weapon Grenade Launcher Energy Gun Particle Gun Ballistic Gun Shotgun Ballistic Cannon Light Cannon Launcher Grenade Launcher Build | -11 -10 -9 ------- Run | Scr Mat Mat Slots Evolved 2 | . . 2 Power . | . . . Propulsion . | . . . Utility 1 | . . 1 Weapon 1 | . . 1 Parts Attached 25 | 6 8 11 Power 3 | 1 . 2 Engine 3 | 1 . 2 Core . | . . . Reactor . | . . . Propulsion 4 | 2 . 2 Treads . | . . . Leg 4 | 2 . 2 Wheel . | . . . Hover . | . . . Flight . | . . . Utility 8 | 1 6 1 Device . | . . . Storage 6 | 1 5 . Processor 1 | . . 1 Hackware . | . . . Protection 1 | . 1 . Artifact . | . . . Weapon 10 | 2 2 6 Energy Gun 1 | . 1 . Energy Cannon . | . . . Ballistic Gun 5 | 2 . 3 Ballistic Cannon 1 | . . 1 Launcher 3 | . 1 2 Special Weapon . | . . . Impact Weapon . | . . . Slashing Weapon . | . . . Piercing Weapon . | . . . Special Melee Weapon . | . . . Unidentified Prototypes . | . . . Parts Lost 13 | . . 13 Power 2 | . . 2 Propulsion 4 | . . 4 Utility 1 | . . 1 Weapon 6 | . . 6 Highest Loss Streak 6 | . . 6 Average Slot Usage (%) 83 | . 96 80 Engine 9 | . 14 8 Leg 19 | . 28 17 Storage 11 | . 14 11 Processor 7 | . . 9 Protection 5 | . 11 4 Energy Gun 1 | . 5 . Ballistic Gun 10 | . 8 10 Ballistic Cannon 5 | . . 7 Launcher 11 | . 13 10 Naked Turns . | . . . Heaviest Build 43 | 10 43 23 Greatest Support 20 | 20 20 20 Greatest Overweight (x) 4 | . 2 4 Average Overweight (x) . | . . . Largest Inventory Capacity 20 | 6 20 8 Average Capacity 7 | 5 6 8 Most Carried 7 | 2 6 7 Average Carried 5 | 1 4 5 Final Capacity 8 | 6 8 8 Final Carried 6 | 2 6 2 Class Distribution -------------------- 52% | Bomber 47% | Mutant Dominant Class ---------------- Mutant | -10/Materials Bomber | -9/Materials Resources | -11 -10 -9 ----------- Run | Scr Mat Mat Matter Collected 843 | 198 207 438 Remotely . | . . . Salvage Created 615 | . 160 455 Parts 77 | . 26 51 Haulers Intercepted . | . . . Recyclers Shooed . | . . . Parts Field Recycled . | . . . Retrieved Matter . | . . . Parts Self-Destructed . | . . . Prevented . | . . . Kills | -11 -10 -9 ------- Run | Scr Mat Mat Combat Hostiles Destroyed 24 | . 5 19 Guns 9 | . 1 8 Cannons 2 | . . 2 AOE 13 | . 4 9 Classes Destroyed 9 | . 6 3 Worker 2 | . 1 1 Builder 6 | . 2 4 Tunneler 1 | . 1 . Recycler 1 | . 1 . Watcher 3 | . . 3 Swarmer 9 | . 3 6 Grunt 12 | . 2 10 Duelist 1 | . . 1 Sentry 2 | . . 2 Best Kill Streak 7 | . 7 4 Combat Bots Only 3 | . 3 3 Max Kills in Single Turn 3 | . 3 3 Gunslinging . | . . . Exploded 2 | . 2 2 Melee . | . . . Uniques/NPCs Destroyed . | . . . Combat | -11 -10 -9 -------- Run | Scr Mat Mat Damage Taken 1616 | . 177 1439 Core 476 | . 85 391 Absorbed by Shields . | . . . Core Remaining (%) 83 | 100 66 . Volleys Fired 57 | . 7 50 Largest 3 | . 2 3 Hottest 95 | . 95 95 Shots Fired 127 | . 14 113 Gun 58 | . 7 51 Cannon 27 | . . 27 Launcher 42 | . 7 35 Special . | . . . Kinetic 74 | . 5 69 Thermal 11 | . 2 9 Explosive 42 | . 7 35 Electromagnetic . | . . . Robot Hit Streak 8 | . 5 8 Robot Miss Streak 6 | . 1 6 Penetration Max . | . . . Secondary Targets . | . . . Shots Hit Robots 53 | . 9 44 Core Hits 68 | . 14 54 Critical Hits . | . . . Critical Kills . | . . . Critical Parts Destroyed . | . . . Melee Attacks . | . . . Impact . | . . . Slashing . | . . . Piercing . | . . . Sneak Attacks . | . . . Combat Hostiles . | . . . Follow-up Attacks . | . . . Damage Inflicted 2312 | . 516 1796 Guns 353 | . 24 329 Cannons 131 | . . 131 Explosions 1828 | . 492 1336 Melee . | . . . Ramming . | . . . Kinetic 390 | . 24 366 Thermal 468 | . . 468 Explosive 1454 | . 492 962 Electromagnetic . | . . . Impact . | . . . Slashing . | . . . Piercing . | . . . Highest Corruption . | . . . Average Corruption . | . . . Corruption Purged . | . . . Overload Shots . | . . . Overflow Damage 134 | . . 134 Projectiles 4 | . . 4 Explosions 130 | . . 130 Melee . | . . . Knockbacks 1 | . . 1 Impact . | . . . Kinetic 1 | . . 1 Secondary . | . . . Self-Inflicted Damage 213 | . 103 110 Shots 8 | . 2 6 Rammed . | . . . Targets Rammed . | . . . Kicked . | . . . Crushed . | . . . Highest Temperature 183 | . 84 183 Average Temperature 36 | . 27 38 Received Heat Transfer 252 | . 33 219 Siege Activations . | . . . Robots Corrupted . | . . . Combat Hostiles . | . . . Parts Fried . | . . . Impact Corruptions . | . . . Robots Melted . | . . . Combat Hostiles . | . . . Parts Melted . | . . . Heat Transferred 472 | . . 472 Parts Sabotaged . | . . . Parts Stolen . | . . . Parts Stripped . | . . . Power Chain Reactions . | . . . Missiles Intercepted . | . . . Alert | -11 -10 -9 ------- Run | Scr Mat Mat Peak Influence 340 | . 250 340 Initial 105 | . . 105 Average 163 | . 106 198 Maximum Alert Level 1 | . 1 1 Low Security (%) 45 | 100 63 34 Level 1 54 | . 36 65 Level 2 . | . . . Level 3 . | . . . Level 4 . | . . . Level 5 . | . . . High Security . | . . . Max Security . | . . . Squads Dispatched 3 | . 1 2 Investigation . | . . . Extermination . | . . . Reinforcement 3 | . 1 2 Assault . | . . . Garrison . | . . . Intercept . | . . . Construction Impeded 1 | . . 1 Haulers Reinforced . | . . . Stealth | -11 -10 -9 --------- Run | Scr Mat Mat Distress Signals 3 | . 1 2 Communications Jammed . | . . . Distress Signals . | . . . Times Spotted 44 | . 8 36 Peak Tracking Total 6 | . 5 6 Tactical Retreats . | . . . Traps | -11 -10 -9 ------- Run | Scr Mat Mat Traps Triggered 1 | . . 1 Indirectly . | . . . Trap Hack Attempts . | . . . Triggered . | . . . Disarmed . | . . . Reprogrammed . | . . . Reused . | . . . Traps Extracted . | . . . Installed . | . . . Triggered . | . . . Machines | -11 -10 -9 ---------- Run | Scr Mat Mat Machines Disabled 11 | . 4 7 Max in Single Turn 2 | . 2 1 Machines Sabotaged . | . . . Garrisons Compromised . | . . . Overloaded Fab Kills . | . . . Fab Network Shutdowns . | . . . Hacking | -11 -10 -9 --------- Run | Scr Mat Mat Machines Accessed 1 | . . 1 Terminals . | . . . Fabricators . | . . . Repair Stations . | . . . Recycling Units . | . . . Scanalyzers 1 | . . 1 Garrison Access . | . . . Total Hacks 2 | . . 2 Successful 2 | . . 2 Failed . | . . . Catastrophic . | . . . Database Lockouts . | . . . Manual . | . . . Terminals . | . . . Fabricators . | . . . Repair Stations . | . . . Recycling Units . | . . . Scanalyzers 2 | . . 2 Garrison Access . | . . . Terminal Hacks . | . . . Fabricator Hacks . | . . . Repair Station Hacks . | . . . Recycling Unit Hacks . | . . . Scanalyzer 2 | . . 2 Insert Component 1 | . . 1 Analyze 1 | . . 1 Garrison Access Hacks . | . . . Unauthorized Hacks . | . . . Terminals . | . . . Fabricators . | . . . Repair Stations . | . . . Recycling Units . | . . . Scanalyzers . | . . . Garrison Access . | . . . Data Cores Recovered . | . . . Used . | . . . Hacking Detections 1 | . . 1 Full Trace Events . | . . . Feedback Events . | . . . Feedback Blocked . | . . . Robot Schematics Acquired . | . . . Robots Built . | . . . Matter . | . . . Time . | . . . Total Robot Build Rating . | . . . Part Schematics Acquired 1 | . . 1 Parts Built . | . . . Matter . | . . . Time . | . . . Total Part Build Rating . | . . . Parts Repaired . | . . . Time . | . . . Parts Recycled . | . . . Recycled Matter . | . . . Retrieved Matter . | . . . Retrieved Components . | . . . Parts Scanalyzed 1 | . . 1 Part Schematics Acquired 1 | . . 1 Parts Damaged . | . . . Bothacking | -11 -10 -9 ------------ Run | Scr Mat Mat Used RIF Installer . | . . . Robots Hacked . | . . . Non-combat . | . . . Combat . | . . . Robot Hacks Applied . | . . . Relay Couplers Released . | . . . Robots Rewired . | . . . Allies Hacked . | . . . Hacks Repelled . | . . . Allies | -11 -10 -9 -------- Run | Scr Mat Mat Total Allies . | . . . Largest Group . | . . . Highest-Rated Group . | . . . Highest-Rated Ally . | . . . Total Orders . | . . . Ally Attacks . | . . . Total Damage . | . . . Kills . | . . . Allies Corrupted . | . . . Allies Melted . | . . . Intel | -11 -10 -9 ------- Run | Scr Mat Mat Robot Analysis Total . | . . . Derelict Logs Recovered . | . . . Drone Launches . | . . . Drone Recoveries . | . . . Exploration | -11 -10 -9 ------------- Run | Scr Mat Mat Turns Passed 1754 | 153 333 1268 Spaces Moved 1055 | 111 227 717 Core 88 | 5 . 83 Treads . | . . . Legs 967 | 106 227 634 Wheels . | . . . Hover . | . . . Flight . | . . . Fastest Speed 50 | 50 120 120 Average Speed 138 | 116 121 147 Slowest Speed 250 | 120 180 250 Overloaded Moves . | . . . Propulsion Burnouts . | . . . Robots Hopped . | . . . Cave-ins Triggered . | . . . Exploration Rate (%) 36 | 7 50 51 Regions Visited 2 Branch Regions . Pre-discovered Areas . | . . . Known Exits Taken . | . . . Unknown Exits Taken 2 | 1 1 . Scrap Searched . | . . . Spaces Dug 12 | . . 12 Terrain Destroyed 210 | . 56 154 Melee . | . . . Projectile . | . . . AOE 210 | . 56 154 Terrain Rammed . | . . . Walls Destroyed . | . . . Machines Disabled . | . . . Actions | -11 -10 -9 --------- Run | Scr Mat Mat Total 1243 | 131 274 838 Wait 79 | 13 15 51 Move 1053 | 110 226 717 Hop . | . . . Pick Up 14 | 2 9 3 Fast Attach 12 | 6 2 4 Attach 11 | . 5 6 Detach 5 | . 3 2 Swap 2 | . 1 1 Drop 10 | . 6 4 Fire 57 | . 7 50 Melee . | . . . Ram . | . . . Kick . | . . . Crush . | . . . Escape Stasis . | . . . Rewire . | . . . Trap . | . . . Miscellaneous . | . . . Route ------- -11/Scrapyard -10/Materials -9/Materials (discovered 3 exits: [*Min x2] / [*Sto]) History --------- Turn | Location | Event 2 | -11/Scrapyard | Discovered new exit (range 16) 154 | -11/Scrapyard | Entered Materials 309 | -10/Materials | Build established: Mutant 481 | -10/Materials | Discovered new exit (range 3) 487 | -10/Materials | Entered another Materials area 487 | -9/Materials | Evolved 2 slots: Utility x1, Weapon x1 529 | -9/Materials | Discovered new exit (range 15) 853 | -9/Materials | Build established: Bomber 1293 | -9/Materials | Discovered new exit (range 14) 1366 | -9/Materials | Discovered new exit (range 16) 1420 | -9/Materials | Core integrity fell below 50% 1450 | -9/Materials | Lost 5 parts (1p2n2w) 1748 | -9/Materials | Core integrity fell below 20% 1755 | -9/Materials | Self-destructed Last Messages --------------- 01669_ K-01 Serf cleans the Pressure Siphon. 01671_ Dropped Ion Engine. 01671_ Acquired Ion Engine. 01673_ Dropped Hcp. Storage Unit. 01674_ K-01 Serf cleans the Pressure Siphon. 01700_ S-10 Pest destroyed. 01710_ W-16 Scout sends out distress signal. 01713_ S-10 Pest destroyed. 01721_ Shotgun destroyed. 01722_ Grenade Launcher destroyed. 01723_ Aluminum Leg destroyed. 01732_ Ion Engine destroyed. 01738_ K-01 Serf cleans the Neutrino Reactor. 01742_ Lgt. Assault Rifle destroyed. 01742_ K-01 Serf cleans the Neutrino Reactor. 01746_ Aluminum Leg destroyed. 01747_ K-01 Serf cleans the Neutrino Reactor. 01749_ K-01 Serf suffers critical hit. 01749_ K-01 Serf destroyed. 01753_ K-01 Serf collects debris. Map ----- +----------------------------------------------------+ | | | | | ?????????????????????????????????????????????????? | | ?????????????????????????????????????????????????? | | ?????????????????????????????????????????????????? | | ?????????????????????????????????????????????????? | | ####?????????????????????????????????????????????? | | #?????????????########????????????????????????? | | #?????????????# #????????????????????????? | | #?????????????# """ #????????????????????????? | | #+#######????????#% """ ##???????????????????????? | | #??????### """ #???????????????????????? | | T #?###### ##???????????????????????? | | "" #?# ###########??????????????? | | "" ### #####+###############????????????? | | "" ### != += #????????????? | | ###= ######!! " #????????????? | | # # " # ## " #????????????? | | ####""""" ## """" ###### """ #????????????? | | ?# !!=# """" # #????????????? | | ?# * # ! #%* """ #????????????? | | ?# =*# + [ """ #????????????? | | ?# !"# """" # """ #????????????? | | ?# ## """" #% #????????????? | | ?# + """" ### ####################??? | | ?# ## ###@ """ ???? | | ?# # #?#* "R" ????? | | ?# ## """" #?#%s" " """ """ "" ??? | | ?######+### """" #?#ws """ """ ? ? | | ???### """" #?# """ """ =% | | ###### ^% #?# ! %= #? | | % ^ #?# k #? | | ####### ### """" ###?# """ """ """ """ #? | | ??#####+#### """" #???# """ """ """ """ | | ????# # """" #???# s""" """ """ """ | | ????# """ + #???# = * | | ????# """ # #???# | | ????# """ !# "#???# | | ????# # "#???############# | | ????# % # "#???????????????# """"" ! | | ????######## T####????????????# """"" | | ???????????# " !!##???????????# """"" ? | | ???????????# " !#???????????# ????? | | ???????????# " !#???????????# ????? | | ???????????# !#???????????#######+#????? | | ????????? + !#????????????????????????? | | ???#+###+######## !!##????????????????????????? | | ???# #??## # ####?????????????????????????? | | ???+ #??#" %= #???????????????????????????? | | ???# #??#" #???????????????????????????? | +----------------------------------------------------+ Best States ------------- Heat Dissipation 28 Energy Generation 10 Energy Capacity 250 Matter Stores 300 Matter Capacity 300 Sight Range 16 Terrain Scan Density 10 Armor Coverage 150 Evasion (%) 40 Targeting Accuracy 5 Item Schematics ----------------- Hcp. Storage Unit | -9/Materials | Scanalyzed Robot Schematics ------------------ None Fabricated ------------ Nothing Alien Tech Used ----------------- None Achievements -------------- Remodeling Challenges ------------ None Game ------ Seed SensorDimensionalProtection Manual? 0 Play Time 00:27:27 Cumulative 2.7 hours Start 2021.01.10 @ 00:22:38 End 2021.01.10 @ 00:51:29 Sessions 1 Manual Loads 0 Difficulty Rogue Special Mode None Game No. 4 Rogue 4 Adventurer 0 Explorer 0 Win Type - Total 0 Types 0/0/0/0/0/0/0/0/0 Lore% 0 Gallery% 3 Achievement% 4 Wizard Run 0 Options --------- ASCII 0 Keyboard 1 Movement Vi Keybinds 1 Fullscreen 1 Font 12/Terminus Map View 83x54 Tactical HUD 1 Map Filters NONE Filters NONE Steam 1 RUN: c14c1e86-09f6-4d88-a8fc-9a3458c9f1d9